bitfinex/quotes_SOLUSD_20240918
["timestamp","ask_amount","ask_price","bid_price","bid_amount"]
[1726688193013,7.6764,130.27,130.22,7.6792]
[1726688193423,7.6776,130.25,130.19,7.6805]
[1726688193624,63.90369457,130.28,130.19,7.6805]
[1726688193827,7.6775,130.25,130.19,7.6805]
[1726688194034,7.6775,130.25,130.18,19.6004079]
[1726688194035,7.6781,130.24,130.18,27.2820079]
[1726688194232,7.6776,130.25,130.2,7.6804]
[1726688194637,7.6776,130.25,130.19,7.6808]
[1726688195132,7.677,130.26,130.2,7.6803]
[1726688195444,63.90369457,130.28,130.2,7.6803]
[1726688195445,20.0,130.27,130.22,7.6787]
[1726688195647,7.6763,130.27,130.21,7.6797]
[1726688195821,7.6782,130.24,130.18,0.3968079]
[1726688196145,7.6774,130.26,130.2,7.6799]
[1726688196351,7.6774,130.26,130.19,19.2015]
[1726688196352,64.15467457,130.26,130.19,19.2015]
[1726688196649,7.6793,130.22,130.18,0.3968079]
[1726688196846,20.12549,130.23,130.18,0.3968079]
[1726688197228,27.681,130.19,130.18,0.3968079]
[1726688198050,20.0,130.2,130.18,0.3968079]
[1726688198519,79.60899457,130.24,130.18,0.3968079]
[1726688198724,7.68,130.21,130.18,0.3968079]
[1726688199038,0.37647,130.22,130.18,0.3968079]
[1726688199427,7.6806,130.2,130.18,0.3968079]
[1726688199629,0.37647,130.22,130.18,0.3968079]
[1726688199947,7.681,130.19,130.18,0.3968079]
[1726688200143,27.96974051,130.23,130.18,0.3968079]
[1726688200439,19.1929,130.26,130.18,0.3968079]
[1726688200440,7.6799,130.21,130.18,0.3968079]
[1726688200612,19.57267,130.24,130.18,0.3968079]
[1726688200814,20.0,130.23,130.18,0.3968079]
[1726688201018,20.0,130.21,130.18,0.3968079]
[1726688201221,27.6803,130.21,130.18,0.3968079]
[1726688201651,7.6805,130.2,130.18,0.3968079]
[1726688201831,20.0,130.23,130.18,0.3968079]
[1726688201832,7.681,130.19,130.18,0.3968079]
[1726688202036,27.681,130.19,130.18,0.3968079]
[1726688202933,7.6808,130.2,130.18,0.3968079]
[1726688203133,6.6234,130.23,130.18,0.3968079]
[1726688203349,7.6787,130.23,130.18,8.0784079]
[1726688203727,63.90369457,130.26,130.18,8.0767594]
[1726688203952,7.6794,130.22,130.18,0.3951594]
[1726688204261,7.6799,130.21,130.18,0.3951594]
[1726688204741,7.6794,130.22,130.18,0.3951594]
[1726688204947,7.68,130.21,130.18,0.3951594]
[1726688205547,7.6793,130.22,130.18,0.3951594]
[1726688205851,27.6793,130.22,130.18,8.0765594]
[1726688206066,7.6793,130.22,130.18,0.3951594]
[1726688206350,20.0,130.22,130.18,8.0763594]
[1726688206647,7.6791,130.23,130.19,7.6809]
[1726688206859,20.0,130.23,130.18,19.5987594]
[1726688207147,7.6805,130.2,130.18,0.3951594]
[1726688207326,20.0,130.24,130.18,0.3951594]
[1726688207727,7.6797,130.22,130.18,0.3951594]
[1726688208327,20.0,130.27,130.2,7.6804]
[1726688208550,20.0,130.25,130.18,0.3951594]
[1726688208723,7.6792,130.23,130.18,8.0763594]
[1726688208931,7.6794,130.22,130.18,8.0763594]
[1726688209136,7.6794,130.22,130.18,0.3951594]
[1726688209368,106.17959457,130.24,130.18,0.3951594]
[1726688209544,86.98369457,130.26,130.18,0.3951594]
[1726688209744,20.12549,130.25,130.18,0.3951594]
[1726688210069,7.6783,130.24,130.19,7.6807]
[1726688210273,20.0,130.23,130.2,7.6802]
[1726688210568,20.0,130.23,130.18,0.3951594]
[1726688210755,20.12549,130.24,130.18,0.3951594]
[1726688210941,7.68,130.21,130.18,0.3951594]
[1726688211264,20.0,130.23,130.18,0.3951594]
[1726688211562,20.0,130.23,130.21,7.6798]
[1726688211761,7.6795,130.22,130.18,0.3951594]
[1726688212071,20.0,130.24,130.18,0.3951594]
[1726688212243,20.0,130.25,130.18,0.3951594]
[1726688212964,7.6806,130.2,130.18,0.3951594]
[1726688213266,27.6805,130.2,130.18,0.3951594]
[1726688213863,20.0,130.2,130.18,0.3951594]
[1726688214074,7.68,130.21,130.18,8.0765594]
[1726688214075,20.0,130.21,130.18,8.0765594]
[1726688214244,27.6801,130.21,130.18,0.3951594]
[1726688214447,20.0,130.21,130.18,8.0767594]
[1726688214651,14.60961213,130.28,130.19,19.2024]
[1726688214652,120.7839067,130.28,130.19,19.2024]
[1726688214861,61.4678,130.25,130.18,0.3951594]
[1726688215173,7.681,130.19,130.18,0.3951594]
[1726688215746,27.681,130.19,130.18,0.3951594]
[1726688216166,27.93198,130.19,130.18,0.3951594]
[1726688216572,28.05747,130.19,130.18,0.3951594]
[1726688216879,28.05747,130.19,130.14,0.2961126]
[1726688216880,27.6834,130.15,130.14,0.2961126]
[1726688220200,28.05987,130.15,130.14,0.2961126]
[1726688220366,7.6863,130.1,130.09,0.2961126]
[1726688220754,91.58999457,130.1,130.09,0.2961126]
[1726688221066,91.96646457,130.1,130.09,0.2961126]
[1726688221265,27.81179,130.1,130.09,0.2961126]
[1726688221485,7.6887,130.06,130.05,0.2961126]
[1726688221978,27.6887,130.06,130.05,0.2961126]
[1726688222692,20.0,130.06,130.05,0.2961126]
[1726688222875,57.6424,130.12,130.05,0.1560636]
[1726688222876,63.90369457,130.12,130.05,0.1560636]
[1726688223100,21.5161,130.16,130.05,0.1560636]
[1726688223101,7.6858,130.11,130.06,7.6882]
[1726688223266,63.90369457,130.14,130.06,7.6882]
[1726688223658,7.6853,130.12,130.06,7.6882]
[1726688223883,19.209,130.15,130.05,19.3785636]
[1726688223884,7.6847,130.13,130.08,7.6875]
[1726688224118,70.40779457,130.16,130.06,6.2156]
[1726688224402,7.6845,130.14,130.09,7.6868]
[1726688224699,74.97910806,130.18,130.06,6.2156]
[1726688224877,7.97473716,130.18,130.11,7.6857]
[1726688225080,7.6829,130.16,130.11,7.6857]
[1726688225399,63.90369457,130.16,130.07,416.4459]
[1726688225578,7.6838,130.15,130.09,7.6867]
[1726688225890,7.6828,130.16,130.09,19.2163]
[1726688226070,7.6823,130.17,130.11,7.6856]
[1726688226468,7.6811,130.19,130.13,7.6845]
[1726688226693,7.6811,130.19,130.14,7.6839]
[1726688226897,7.6835,130.15,130.09,7.6868]
[1726688227195,63.90369457,130.16,130.08,401.3187]
[1726688227369,7.6839,130.15,130.09,7.6864]
[1726688227565,63.90369457,130.18,130.08,409.0061]
[1726688227566,7.6843,130.14,130.08,409.0061]
[1726688227871,63.90369457,130.2,130.1,19.2147]
[1726688228192,63.90369457,130.2,130.08,382.1]
[1726688228193,7.6809,130.2,130.14,7.6834]
[1726688228369,7.6806,130.2,130.14,7.6834]
[1726688228571,7.6818,130.18,130.13,7.6845]
[1726688228881,7.6823,130.17,130.11,7.6856]
[1726688229191,7.6833,130.16,130.1,7.6863]
[1726688229395,7.6833,130.16,130.11,7.6855]
[1726688229694,7.6824,130.17,130.12,7.6851]
[1726688229904,27.6816,130.19,130.13,7.6845]
[1726688230109,7.6818,130.18,130.13,7.6845]
[1726688230313,7.6798,130.22,130.14,0.5458769]
[1726688230499,7.9460766,130.23,130.18,7.6815]
[1726688230809,0.2673766,130.23,130.18,7.6815]
[1726688230974,7.9462766,130.23,130.18,7.6815]
[1726688231677,7.6799,130.21,130.17,19.2049]
[1726688232113,0.2673766,130.23,130.21,19.1989]
[1726688232277,0.2673766,130.23,130.18,7.6811]
[1726688232473,0.2673766,130.23,130.17,0.12549]
[1726688232670,0.2673766,130.23,130.2,26.88]
[1726688232995,0.2673766,130.23,130.17,19.45638]
[1726688233300,0.2673766,130.23,130.16,397.9735]
[1726688233476,7.9465766,130.23,130.17,9.21464902]
[1726688233675,7.6797,130.22,130.17,1.53254902]
[1726688233972,7.9461766,130.23,130.16,397.9735]
[1726688234391,7.6794,130.22,130.16,397.9735]
[1726688234590,7.6794,130.22,130.16,405.6561]
[1726688234998,7.9461766,130.23,130.16,397.9735]
[1726688235212,7.9461766,130.23,130.17,19.2043]
[1726688235599,0.2673766,130.23,130.17,19.2043]
[1726688236100,0.2673766,130.23,130.19,19.2017]
[1726688236277,0.2673766,130.23,130.21,19.1987]
[1726688236477,0.2673766,130.23,130.16,397.9735]
[1726688236911,7.9460766,130.23,130.18,7.6812]
[1726688237080,0.2673766,130.23,130.19,7.6808]
[1726688237285,0.2673766,130.23,130.19,7.6809]
[1726688238020,0.2673766,130.23,130.2,0.12549]
[1726688238301,0.2673766,130.23,130.2,382.22549]
[1726688238501,0.2673766,130.23,130.22,7.6793]
[1726688239209,0.2673766,130.23,130.22,7.93028]
[1726688239396,0.2673766,130.23,130.22,7.6793]
[1726688239598,0.2673766,130.23,130.21,19.1985]
[1726688239980,0.2673766,130.23,130.2,382.1]
[1726688240181,0.2673766,130.23,130.21,7.6798]
[1726688240415,0.2673766,130.23,130.2,382.1]
[1726688240781,7.9460766,130.23,130.2,382.1]
[1726688241007,0.2673766,130.23,130.2,382.1]
[1726688241177,0.2673766,130.23,130.21,19.1991]
[1726688241382,0.2673766,130.23,130.22,7.6793]
[1726688241578,0.2673766,130.23,130.21,25.8789]
[1726688241799,0.2673766,130.23,130.2,382.1]
[1726688242750,7.6794,130.22,130.2,382.1]
[1726688243009,64.54228994,130.21,130.12,401.3122]
[1726688243179,7.6822,130.18,130.13,7.6844]
[1726688243583,7.6811,130.19,130.14,9.21434499]
[1726688243786,7.6811,130.19,130.15,1.53032743]
[1726688243988,64.80966654,130.23,130.15,1.53032743]
[1726688244213,64.80966654,130.23,130.14,19.2093]
[1726688244394,7.6828,130.16,130.11,40.6615]
[1726688244592,83.74608994,130.19,130.11,21.4476]
[1726688244813,64.54228994,130.19,130.11,21.4476]
[1726688245114,7.6833,130.16,130.11,21.4476]
[1726688245296,64.54228994,130.19,130.12,7.6848]
[1726688245487,64.54228994,130.19,130.11,7.6857]
[1726688245690,64.54228994,130.17,130.1,19.2152]
[1726688246010,64.54228994,130.2,130.13,19.2107]
[1726688246186,20.12549,130.21,130.13,19.2107]
[1726688246385,7.6822,130.17,130.13,19.2107]
[1726688246601,83.74458994,130.2,130.1,19.2156]
[1726688246931,7.6823,130.17,130.12,7.6851]
[1726688247101,7.6829,130.16,130.1,19.2156]
[1726688247303,64.54228994,130.18,130.1,19.2156]
[1726688247607,7.6829,130.16,130.11,7.6856]
[1726688248494,7.6835,130.15,130.1,26.9019]
[1726688249000,64.54228994,130.17,130.07,388.2605]
[1726688249191,7.6845,130.14,130.07,388.2605]
[1726688249393,64.54228994,130.15,130.07,388.2605]
[1726688249592,20.0,130.14,130.07,6.1605]
[1726688250236,20.0,130.14,130.08,19.2181]
[1726688250528,7.6862,130.11,130.07,6.1605]
[1726688250719,20.0,130.14,130.06,15.9552636]
[1726688250720,7.6871,130.09,130.06,15.9552636]
[1726688251029,7.687,130.09,130.06,0.1560636]
[1726688251631,7.6876,130.08,130.06,0.1560636]
[1726688251922,7.6881,130.07,130.06,0.1560636]
[1726688252325,27.6881,130.07,130.06,0.1560636]
[1726688252816,20.0,130.07,130.06,0.1560636]
[1726688253020,27.6881,130.07,130.06,0.1560636]
[1726688253315,20.0,130.07,130.06,0.1560636]
[1726688254025,7.6876,130.08,130.06,0.1560636]
[1726688254247,64.54228994,130.11,130.06,0.1560636]
[1726688254900,7.6881,130.08,130.06,0.1560636]
[1726688255243,64.54228994,130.11,130.06,0.1560636]
[1726688255421,64.54228994,130.13,130.06,0.1560636]
[1726688255911,7.6862,130.11,130.06,7.8446636]
[1726688256431,64.54228994,130.13,130.06,0.1560636]
[1726688256635,64.54228994,130.11,130.06,0.1560636]
[1726688256925,7.6864,130.1,130.06,0.1560636]
[1726688257132,64.54228994,130.11,130.06,0.1560636]
[1726688257309,20.0,130.12,130.06,0.1560636]
[1726688257709,7.6865,130.1,130.06,0.1560636]
[1726688257929,7.6858,130.11,130.06,7.8446636]
[1726688258103,7.6875,130.08,130.06,0.1560636]
[1726688258507,64.54228994,130.11,130.06,0.1560636]
[1726688258914,7.6865,130.1,130.06,7.8447636]
[1726688259217,20.0,130.12,130.06,7.8447636]
[1726688259218,7.6881,130.07,130.06,0.1560636]
[1726688259801,92.23038994,130.07,130.06,0.1560636]
[1726688261030,92.23038994,130.07,130.0,382.5234402]
[1726688261031,7.6917,130.01,130.0,0.4234402]
[1726688263045,34.16472576,130.04,130.0,0.4234402]
[1726688263249,7.6916,130.02,130.0,0.4234402]
[1726688263607,7.6917,130.01,130.0,0.4234402]
[1726688266026,7.6912,130.02,130.0,0.4234402]
[1726688266232,7.6917,130.01,130.0,0.4234402]
[1726688266543,34.16472576,130.06,130.0,0.4234402]
[1726688266834,7.6912,130.02,130.0,0.4234402]
[1726688267213,7.6894,130.05,130.0,0.4234402]
[1726688267415,7.6888,130.06,130.01,0.12549]
[1726688267738,59.78852576,130.12,130.04,26.9143]
[1726688267940,7.6881,130.08,130.04,19.2244]
[1726688268247,53.37882576,130.12,130.04,26.9142]
[1726688268543,53.37882576,130.12,130.03,6.607]
[1726688269133,20.0,130.11,130.03,6.107]
[1726688270264,20.0,130.09,130.01,398.5763]
[1726688270459,34.16472576,130.08,130.01,398.5763]
[1726688270761,20.0,130.07,130.01,382.1]
[1726688270974,20.0,130.07,130.02,0.96158361]
[1726688271163,20.0,130.07,130.0,8.1154402]
[1726688271350,20.0,130.07,130.0,0.4234402]
[1726688271872,34.16472576,130.08,130.0,0.4234402]
[1726688272044,20.0,130.09,130.0,27.3453402]
[1726688273065,20.0,130.09,130.01,0.25098]
[1726688273236,7.6886,130.07,130.03,7.6904]
[1726688273439,7.6899,130.04,130.0,27.3453402]
[1726688273751,7.6899,130.04,130.01,0.99900848]
[1726688273944,7.6894,130.05,130.02,0.99893164]
[1726688274547,7.6894,130.05,130.01,0.12549]
[1726688274861,53.38422576,130.08,130.0,19.6532402]
[1726688275054,7.6903,130.04,130.0,19.6532402]
[1726688275970,7.6891,130.06,130.01,0.25098]
[1726688276139,7.6891,130.06,130.01,7.94218]
[1726688276464,19.2212,130.07,130.0,0.4234402]
[1726688276874,20.0,130.09,130.0,0.4234402]
[1726688276875,19.2242,130.05,130.0,0.4234402]
[1726688277066,7.6917,130.01,130.0,0.4234402]
[1726688277373,20.0,130.09,130.0,1.95884404]
[1726688277675,7.6882,130.07,130.02,26.9177]
[1726688277841,7.6889,130.06,130.02,26.9177]
[1726688278042,7.6894,130.05,130.0,0.4234402]
[1726688278270,20.0,130.07,130.0,0.4234402]
[1726688278470,7.691,130.03,130.0,0.4234402]
[1726688278763,7.6901,130.04,130.0,0.4234402]
[1726688278970,7.6901,130.04,130.01,0.46892913]
[1726688279143,7.6905,130.03,130.01,0.46892913]
[1726688279546,7.6911,130.02,130.01,0.46892913]
[1726688279847,7.6911,130.02,130.0,0.4234402]
[1726688280048,7.6907,130.03,130.0,0.4234402]
[1726688280368,27.19842062,130.1,130.01,19.47998]
[1726688280582,20.0,130.09,130.01,27.17108]
[1726688280740,15.2797,130.14,130.01,27.17108]
[1726688280741,22.27564141,130.13,130.03,19.226]
[1726688280940,7.6848,130.13,130.08,7.687]
[1726688281248,7.6848,130.13,130.09,7.6868]
[1726688281447,7.6836,130.15,130.11,7.6857]
[1726688281644,1.34019538,130.22,130.11,0.12549]
[1726688281844,15.8586402,130.23,130.09,20.0]
[1726688281845,0.4234402,130.23,130.14,0.37647]
[1726688282044,7.6805,130.2,130.15,26.8906]
[1726688282279,7.6797,130.22,130.17,7.6821]
[1726688282445,0.4234402,130.23,130.16,0.12549]
[1726688282643,0.4234402,130.23,130.15,19.2073]
[1726688282957,8.1026402,130.23,130.17,7.6821]
[1726688283277,0.4234402,130.23,130.18,0.46917134]
[1726688283444,0.4234402,130.23,130.21,7.6797]
[1726688283646,0.4234402,130.23,130.22,8.27381722]
[1726688283868,0.4234402,130.23,130.19,19.45348]
[1726688284051,0.4234402,130.23,130.2,0.96151365]
[1726688284245,0.4234402,130.23,130.2,0.12549]
[1726688284447,7.96915176,130.32,130.22,0.12549]
[1726688284649,0.5197992,130.23,130.22,0.12549]
[1726688285159,0.5197992,130.23,130.22,0.37647]
[1726688285343,0.2704386,130.25,130.24,28.05457]
[1726688285942,0.2704386,130.29,130.26,7.6765]
[1726688286144,0.2704386,130.29,130.25,0.25098]
[1726688286445,0.2704386,130.29,130.24,0.25098]
[1726688286948,7.6758,130.28,130.24,0.25098]
[1726688287475,7.6758,130.28,130.23,0.37647]
[1726688287798,0.2704386,130.29,130.23,0.37647]
[1726688287974,0.2704386,130.29,130.23,0.12549]
[1726688288144,0.2704386,130.29,130.22,15.2293]
[1726688288347,0.2704386,130.29,130.19,382.1]
[1726688288652,0.2704386,130.29,130.23,19.1955]
[1726688289363,0.2704386,130.29,130.19,453.05737577]
[1726688289546,7.9457386,130.29,130.23,0.37647]
[1726688289747,7.6771,130.26,130.21,7.6798]
[1726688290054,0.2704386,130.29,130.24,0.12549]
[1726688290055,7.6763,130.28,130.24,0.12549]
[1726688290453,0.2704386,130.29,130.24,0.12549]
[1726688290675,7.9458386,130.29,130.26,0.12549]
[1726688290973,7.9458386,130.29,130.25,0.25098]
[1726688290974,7.6758,130.28,130.24,19.1951]
[1726688291152,7.6765,130.27,130.25,0.12549]
[1726688291474,7.6769,130.26,130.23,382.1]
[1726688291677,0.2704386,130.29,130.23,382.1]
[1726688291678,7.6775,130.25,130.23,382.1]
[1726688291850,7.6781,130.24,130.23,382.1]
[1726688292055,7.6781,130.24,130.19,7.6807]
[1726688292248,7.6775,130.26,130.19,382.1]
[1726688292796,0.2704386,130.29,130.23,7.6784]
[1726688293173,0.2704386,130.29,130.22,0.37647]
[1726688293358,0.2704386,130.29,130.22,0.12549]
[1726688293554,7.6783,130.24,130.22,0.12549]
[1726688293774,7.6768,130.27,130.22,0.25098]
[1726688293974,0.2704386,130.29,130.22,0.25098]
[1726688294280,7.6776,130.25,130.22,0.25098]
[1726688294660,7.6776,130.25,130.22,0.12549]
[1726688294857,64.51828104,130.26,130.19,382.1]
[1726688295073,64.51828104,130.28,130.19,382.1]
[1726688295297,7.678,130.25,130.2,7.6804]
[1726688295462,7.677,130.26,130.21,7.6798]
[1726688295785,7.6769,130.27,130.21,19.199]
[1726688295954,0.2704386,130.29,130.21,432.1]
[1726688296151,0.2704386,130.29,130.24,0.37647]
[1726688296587,0.2704386,130.29,130.24,0.12549]
[1726688296990,0.2704386,130.29,130.26,0.12549]
[1726688297201,0.2704386,130.29,130.24,0.12549]
[1726688297494,7.677,130.26,130.24,0.12549]
[1726688297865,7.6763,130.27,130.23,0.37647]
[1726688298167,7.6759,130.28,130.24,1.53514762]
[1726688298368,7.6759,130.28,130.23,8.05497]
[1726688298891,20.2704386,130.29,130.19,382.1]
[1726688299103,7.6779,130.25,130.21,7.6798]
[1726688299275,7.6779,130.25,130.2,7.6799]
[1726688299470,7.6779,130.25,130.19,382.1]
[1726688299471,7.6779,130.25,130.21,7.6797]
[1726688299673,7.6768,130.27,130.2,19.2005]
[1726688299981,7.6772,130.26,130.2,19.2005]
[1726688300201,7.6765,130.27,130.22,0.37647]
[1726688300503,7.6765,130.27,130.24,0.37647]
[1726688300704,7.9460386,130.29,130.25,7.6775]
[1726688300878,0.2704386,130.29,130.25,7.6769]
[1726688301076,0.2704386,130.29,130.24,382.47647]
[1726688301272,7.6764,130.27,130.25,0.12549]
[1726688301505,0.2704386,130.29,130.24,382.1]
[1726688301679,7.6775,130.25,130.24,382.1]
[1726688301888,7.6769,130.26,130.24,382.1]
[1726688302496,7.6775,130.25,130.24,382.1]
[1726688302838,7.6767,130.27,130.24,382.1]
[1726688302974,7.6769,130.27,130.24,382.1]
[1726688303180,19.4589386,130.29,130.24,382.1]
[1726688303495,7.6775,130.25,130.24,382.1]
[1726688303695,64.51828104,130.26,130.17,416.8428]
[1726688304002,7.6783,130.24,130.2,7.6804]
[1726688304297,7.6776,130.25,130.21,7.6798]
[1726688304476,7.6787,130.23,130.19,26.8832]
[1726688304810,19.1917,130.27,130.17,397.6382]
[1726688304811,7.6794,130.22,130.17,397.6382]
[1726688304980,19.1917,130.27,130.17,397.6382]
[1726688304981,7.6787,130.23,130.17,397.6382]
[1726688305185,7.6787,130.23,130.18,19.2032]
[1726688305395,7.6804,130.21,130.17,397.6382]
[1726688305599,7.6804,130.21,130.17,382.1]
[1726688305799,19.1943,130.25,130.17,382.1]
[1726688305800,20.0,130.24,130.17,382.1]
[1726688305977,46.11511396,130.27,130.17,401.305]
[1726688306180,20.0,130.26,130.17,401.305]
[1726688306376,7.6789,130.23,130.18,7.6814]
[1726688306603,7.6806,130.2,130.17,401.305]
[1726688306800,7.6824,130.17,130.15,0.2704386]
[1726688306999,39.72211396,130.21,130.15,0.2704386]
[1726688307410,7.6828,130.16,130.15,0.2704386]
[1726688307613,27.6828,130.16,130.15,0.2704386]
[1726688307914,7.6852,130.12,130.11,0.2704386]
[1726688308124,20.0,130.15,130.11,0.2704386]
[1726688308419,7.6851,130.13,130.11,0.2704386]
[1726688308709,7.6852,130.12,130.11,0.2704386]
[1726688309087,59.72211396,130.15,130.11,0.2704386]
[1726688309305,84.56651396,130.19,130.11,0.2704386]
[1726688309518,20.0,130.18,130.11,0.2704386]
[1726688309705,20.0,130.18,130.1,7.9873076]
[1726688309706,7.6835,130.15,130.1,7.9873076]
[1726688310087,7.6834,130.15,130.1,19.5157076]
[1726688310286,20.0,130.18,130.12,0.37647]
[1726688310486,7.6833,130.16,130.12,0.37647]
[1726688310720,7.6817,130.18,130.12,8.06127]
[1726688311091,6.0279,130.23,130.14,0.37647]
[1726688311283,83.89110814,130.24,130.14,0.37647]
[1726688311284,7.7385643,130.24,130.19,0.12549]
[1726688311489,0.0603643,130.24,130.19,0.12549]
[1726688311686,0.0603643,130.24,130.2,0.25098]
[1726688312011,0.0603643,130.24,130.21,0.12549]
[1726688312389,0.0603643,130.24,130.23,0.12549]
[1726688312589,0.0603643,130.24,130.22,0.12549]
[1726688312820,0.0603643,130.24,130.22,0.25098]
[1726688313014,0.0603643,130.24,130.23,0.12549]
[1726688313330,0.0603643,130.24,130.22,0.25098]
[1726688313616,0.0603643,130.24,130.21,0.37647]
[1726688313819,0.0603643,130.24,130.2,0.37647]
[1726688314225,7.7389643,130.24,130.2,0.37647]
[1726688314403,0.0603643,130.24,130.2,0.37647]
[1726688314609,7.6788,130.23,130.2,0.12549]
[1726688314802,0.0603643,130.24,130.2,0.37647]
[1726688314803,7.7385643,130.24,130.2,0.37647]
[1726688315225,7.6787,130.23,130.2,0.12549]
[1726688315519,7.6787,130.23,130.2,1.66120548]
[1726688315909,7.7385643,130.24,130.2,1.66120548]
[1726688316096,7.7385643,130.24,130.21,0.12549]
[1726688316288,7.7385643,130.24,130.21,1.66107432]
[1726688316289,0.0603643,130.24,130.21,1.66107432]
[1726688316493,0.0603643,130.24,130.21,0.12549]
[1726688316823,7.7385643,130.24,130.2,0.12549]
[1726688317194,7.7385643,130.24,130.21,0.12549]
[1726688317403,7.7385643,130.24,130.21,1.17669997]
[1726688317729,0.0603643,130.24,130.22,0.25098]
[1726688318388,0.0603643,130.24,130.21,19.32409]
[1726688318389,0.0603643,130.24,130.21,0.12549]
[1726688318593,0.0603643,130.24,130.19,0.25098]
[1726688318819,0.0603643,130.24,130.2,0.12549]
[1726688319030,7.6792,130.23,130.2,0.12549]
[1726688319320,0.0603643,130.24,130.2,7.6804]
[1726688319508,0.0603643,130.24,130.21,7.6794]
[1726688319826,0.0603643,130.24,130.2,19.2003]
[1726688320118,0.0603643,130.24,130.23,7.6787]
[1726688320321,0.0603643,130.24,130.23,0.12549]
[1726688320520,0.0603643,130.24,130.23,8.05517]
[1726688321023,0.0603643,130.24,130.21,0.25098]
[1726688321324,0.0603643,130.24,130.22,0.12549]
[1726688322027,0.0603643,130.24,130.2,382.1]
[1726688322324,7.6787,130.23,130.2,382.1]
[1726688322908,0.0603643,130.24,130.2,382.1]
[1726688323112,7.6794,130.22,130.2,382.1]
[1726688323304,0.0603643,130.24,130.2,382.1]
[1726688323305,7.6788,130.23,130.2,382.1]
[1726688323621,7.6788,130.23,130.21,0.40707475]
[1726688323829,7.6788,130.23,130.2,382.1]
[1726688323997,7.6799,130.21,130.2,382.1]
[1726688324190,0.0603643,130.24,130.2,382.1]
[1726688324415,0.0603643,130.24,130.21,7.93038]
[1726688324604,0.0603643,130.24,130.21,0.25098]
[1726688325098,0.0603643,130.24,130.23,7.92968]
[1726688325304,0.0603643,130.24,130.23,0.25098]
[1726688325702,0.0603643,130.24,130.23,0.12549]
[1726688326020,0.0603643,130.24,130.22,0.25098]
[1726688326209,7.7385643,130.24,130.2,382.1]
[1726688326417,0.0603643,130.24,130.21,8.05627]
[1726688327023,0.0603643,130.24,130.23,0.37647]
[1726688327204,0.0603643,130.24,130.22,19.1978]
[1726688327404,0.0603643,130.24,130.23,0.37647]
[1726688327630,0.0603643,130.24,130.21,382.1]
[1726688327793,7.7389643,130.24,130.22,0.12549]
[1726688327993,0.0603643,130.24,130.22,0.12549]
[1726688328201,0.0603643,130.24,130.22,0.37647]
[1726688328422,0.0603643,130.24,130.23,1.91111489]
[1726688328597,0.0603643,130.24,130.23,0.37647]
[1726688329013,0.0603643,130.24,130.23,8.05517]
[1726688329598,0.0603643,130.24,130.23,410.15517]
[1726688332323,0.0603643,130.24,130.23,382.1]
[1726688333100,0.0603643,130.24,130.21,401.2993]
[1726688333823,0.0603643,130.24,130.22,0.37647]
[1726688334202,7.6793,130.22,130.17,382.1]
[1726688334708,0.0603643,130.24,130.17,408.9873]
[1726688334709,7.6799,130.21,130.17,408.9873]
[1726688335218,7.6799,130.21,130.17,401.3051]
[1726688335419,20.0,130.22,130.14,382.1]
[1726688336022,7.68,130.21,130.16,7.6823]
[1726688336533,0.0603643,130.24,130.17,20.74075491]
[1726688336760,7.7385643,130.24,130.19,7.6806]
[1726688336920,0.0603643,130.24,130.2,7.80559]
[1726688337120,7.7384643,130.24,130.2,0.12549]
[1726688337321,0.0603643,130.24,130.16,20.0]
[1726688337538,7.6793,130.22,130.17,8.05817]
[1726688337737,0.0603643,130.24,130.17,0.37647]
[1726688338724,0.0603643,130.24,130.2,7.6799]
[1726688339062,0.0603643,130.24,130.2,8.05687]
[1726688339851,0.0603643,130.24,130.2,0.37647]
[1726688340453,0.0603643,130.24,130.22,0.37647]
[1726688340956,0.0603643,130.24,130.23,7.80419]
[1726688341133,0.0603643,130.24,130.23,8.05517]
[1726688341451,0.0603643,130.24,130.23,410.15517]